fUSD/lending_fUSD_20250502
["ID","MTS","AMOUNT","RATE_DAILY","PERIOD"]
[359640192,1746207042481,-2028.14,0.00019756,2]
[359640193,1746207042490,-450.0,0.00019756,2]
[359640194,1746207042500,-4490.01,0.00019756,2]
[359640195,1746207042510,-450.0,0.00019756,2]
[359640196,1746207042519,-9449.96,0.00019756,2]
[359640197,1746207042529,-614.98,0.00019756,2]
[359640198,1746207042539,-450.0,0.00019756,2]
[359640199,1746207042548,-646.36,0.00019756,2]
[359640200,1746207042557,-516.56,0.00019756,2]
[359640201,1746207042567,-450.0,0.00019756,2]
[359640202,1746207042576,-5177.91,0.00019756,2]
[359640204,1746207042586,-450.0,0.00019756,2]
[359640205,1746207042595,-450.0,0.00019756,2]
[359640207,1746207042605,-450.0,0.00019756,2]
[359640209,1746207042614,-450.0,0.00019756,2]
[359640210,1746207042623,-4754.44,0.00019756,2]
[359640211,1746207042633,-450.0,0.00019756,2]
[359640212,1746207042642,-450.0,0.00019756,2]
[359640213,1746207042652,-450.0,0.00019756,2]
[359640214,1746207042662,-450.0,0.00019756,2]
[359640215,1746207042671,-875.7,0.00019756,2]
[359640216,1746207042680,-592.65,0.00019756,2]
[359640217,1746207042690,-450.0,0.00019756,2]
[359640219,1746207042699,-504.91495127,0.00019756,2]
[359640221,1746207042709,-450.0,0.00019756,2]
[359640223,1746207042718,-496.15,0.00019756,2]
[359640224,1746207042728,-450.0,0.00019756,2]
[359640225,1746207042737,-450.0,0.00019756,2]
[359640226,1746207042746,-450.0,0.00019756,2]
[359640227,1746207042756,-450.0,0.00019756,2]
[359640229,1746207042766,-450.0,0.00019756,2]
[359640232,1746207042775,-450.0,0.00019756,2]
[359640234,1746207042785,-901.44,0.00019756,2]
[359640235,1746207042795,-450.0,0.00019756,2]
[359640237,1746207042804,-669.71,0.00019756,2]
[359640239,1746207042818,-450.0,0.00019756,2]
[359640240,1746207042832,-508.83,0.00019756,2]
[359640244,1746207042842,-450.0,0.00019756,2]
[359640247,1746207042852,-5110.32,0.00019756,2]
[359640248,1746207042863,-597.29392894,0.00019756,2]
[359640249,1746207042872,-450.0,0.00019756,2]
[359640250,1746207042882,-450.0,0.00019756,2]
[359640251,1746207042892,-482.63,0.00019756,2]
[359640252,1746207042902,-629.05,0.00019756,2]
[359640253,1746207042911,-889.79,0.00019756,2]
[359640254,1746207042922,-104645.72,0.00019756,2]
[359640255,1746207042932,-450.0,0.00019756,2]
[359640256,1746207042942,-533.09,0.00019756,2]
[359640257,1746207042951,-505.49,0.00019756,2]
[359640258,1746207042961,-1143.27,0.00019756,2]
[359640259,1746207042971,-450.0,0.00019756,2]
[359640260,1746207042981,-450.0,0.00019756,2]
[359640261,1746207042990,-956.28,0.00019756,2]
[359640262,1746207043000,-5846.73,0.00019756,2]
[359640263,1746207043010,-450.0,0.00019756,2]
[359640264,1746207043020,-502.56,0.00019756,2]
[359640265,1746207043031,-237.0578191,0.00019756,2]
[359640266,1746207043040,-504.41864297,0.00019756,2]
[359640267,1746207043050,-25000.66,0.00019756,2]
[359640268,1746207043061,-7149.0,0.00019756,2]
[359640269,1746207043071,-450.0,0.00019756,2]
[359640270,1746207043081,-450.0,0.00019756,2]
[359640271,1746207043091,-522.52,0.00019756,2]
[359640272,1746207043101,-2031.79,0.00019756,2]
[359640273,1746207043112,-1097.2,0.00019756,2]
[359640274,1746207043122,-554.47,0.00019756,2]
[359640275,1746207043132,-480.02,0.00019756,2]
[359640276,1746207043142,-1142.28,0.00019756,2]
[359640277,1746207043152,-450.0,0.00019756,2]
[359640278,1746207043162,-450.0,0.00019756,2]
[359640279,1746207043172,-450.0,0.00019756,2]
[359640280,1746207043182,-17130.64,0.00019756,2]
[359640281,1746207043191,-450.0,0.00019756,2]
[359640282,1746207043201,-450.0,0.00019756,2]
[359640283,1746207043211,-461.2,0.00019756,2]
[359640284,1746207043222,-492.31,0.00019756,2]
[359640285,1746207043232,-300.0,0.00019756,2]
[359640286,1746207043241,-123390.34,0.00019756,2]
[359640287,1746207043251,-450.0,0.00019756,2]
[359640288,1746207043261,-450.0,0.00019756,2]
[359640289,1746207043271,-695.85,0.00019756,2]
[359640290,1746207043281,-450.0,0.00019756,2]
[359640291,1746207043291,-552.68,0.00019756,2]
[359640292,1746207043300,-450.0,0.00019756,2]
[359640293,1746207043311,-600.42,0.00019756,2]
[359640294,1746207043326,-450.0,0.00019756,2]
[359640295,1746207043336,-450.0,0.00019756,2]
[359640296,1746207043345,-567.52,0.00019756,2]
[359640297,1746207043356,-596.89,0.00019756,2]
[359640298,1746207043366,-450.0,0.00019756,2]
[359640299,1746207043377,-450.0,0.00019756,2]
[359640300,1746207043387,-508.13,0.00019756,2]
[359640301,1746207043397,-649.86,0.00019756,2]
[359640302,1746207043407,-450.0,0.00019756,2]
[359640303,1746207043418,-531.55,0.00019756,2]
[359640304,1746207043427,-754.2,0.00019756,2]
[359640305,1746207043437,-450.0,0.00019756,2]
[359640306,1746207043447,-586.14,0.00019756,2]
[359640307,1746207043458,-450.0,0.00019756,2]
[359640308,1746207043778,-2468.34,0.00019756,2]
[359640309,1746207043788,-1270.98,0.00019756,2]
[359640310,1746207043798,-450.0,0.00019756,2]
[359640311,1746207043810,-911.99,0.00019756,2]
[359640312,1746207043820,-450.0,0.00019756,2]
[359640313,1746207043830,-450.0,0.00019756,2]
[359640314,1746207043840,-450.0,0.00019756,2]
[359640315,1746207043849,-450.0,0.00019756,2]
[359640316,1746207043859,-450.0,0.00019756,2]
[359640317,1746207043869,-610.65,0.00019756,2]
[359640318,1746207043878,-450.0,0.00019756,2]
[359640319,1746207043887,-450.0,0.00019756,2]
[359640320,1746207043897,-450.0,0.00019756,2]
[359640321,1746207043906,-450.0,0.00019756,2]
[359640322,1746207043916,-450.0,0.00019756,2]
[359640323,1746207043926,-450.0,0.00019756,2]
[359640324,1746207043935,-450.0,0.00019756,2]
[359640325,1746207043945,-450.0,0.00019756,2]
[359640326,1746207043955,-551.31,0.00019756,2]
[359640327,1746207043965,-450.0,0.00019756,2]
[359640328,1746207043975,-450.0,0.00019756,2]
[359640329,1746207043984,-450.0,0.00019756,2]
[359640330,1746207043994,-566.06,0.00019756,2]
[359640331,1746207044004,-450.0,0.00019756,2]
[359640332,1746207044013,-478.71,0.00019756,2]
[359640333,1746207044023,-451.64,0.00019756,2]
[359640334,1746207044032,-450.0,0.00019757,2]
[359640335,1746207044043,-450.0,0.00019757,2]
[359640336,1746207044052,-450.0,0.00019757,2]
[359640337,1746207044064,-450.0,0.00019757,2]
[359640338,1746207044074,-450.0,0.00019757,2]
[359640339,1746207044084,-450.0,0.00019757,2]
[359640340,1746207044094,-450.0,0.00019757,2]
[359640341,1746207044104,-450.0,0.00019757,2]
[359640342,1746207044113,-450.0,0.00019757,2]
[359640343,1746207044123,-450.0,0.00019757,2]
[359640344,1746207044133,-455.29,0.00019757,2]
[359640345,1746207044142,-402.27436238,0.00019757,2]
[359640346,1746207044152,-502.73,0.00019757,2]
[359640347,1746207044161,-450.0,0.00019757,2]
[359640348,1746207044171,-1148.63,0.00019757,2]
[359640349,1746207044180,-450.0,0.00019757,2]
[359640350,1746207044190,-450.0,0.00019757,2]
[359640351,1746207044200,-450.0,0.00019757,2]
[359640352,1746207044210,-1243.16,0.00019757,2]
[359640353,1746207044219,-154.18898431,0.00019757,2]
[359640354,1746207044229,-450.0,0.00019757,2]
[359640355,1746207044238,-453.35,0.00019757,2]
[359640356,1746207044248,-450.0,0.00019757,2]
[359640357,1746207044257,-1693.82,0.00019757,2]
[359640358,1746207044266,-450.0,0.00019757,2]
[359640359,1746207044276,-450.0,0.00019757,2]
[359640360,1746207044286,-453.29,0.00019757,2]
[359640361,1746207044296,-471.29,0.00019757,2]
[359640362,1746207044306,-770.3,0.00019757,2]
[359640363,1746207044319,-994.06,0.00019757,2]
[359640364,1746207044331,-2296.46,0.00019757,2]
[359640365,1746207044340,-450.0,0.00019757,2]
[359640366,1746207044349,-450.0,0.00019757,2]
[359640367,1746207044359,-832.02,0.00019757,2]
[359640368,1746207044369,-301.18044399,0.00019757,2]
[359640369,1746207044379,-450.0,0.00019757,2]
[359640370,1746207044388,-566.26,0.00019757,2]
[359640371,1746207044398,-450.0,0.00019757,2]
[359640372,1746207044407,-450.0,0.00019757,2]
[359640373,1746207044417,-451.18,0.00019757,2]
[359640374,1746207044427,-500.0,0.00019757,2]
[359640375,1746207044436,-988.67,0.00019757,2]
[359640376,1746207044446,-755.37,0.00019757,2]
[359640377,1746207044456,-450.0,0.00019757,2]
[359640378,1746207044465,-450.0,0.00019757,2]
[359640379,1746207044475,-690.18,0.00019757,2]
[359640380,1746207044484,-450.0,0.00019757,2]
[359640381,1746207044494,-450.0,0.00019757,2]
[359640382,1746207044504,-746.61,0.00019757,2]
[359640383,1746207044513,-450.0,0.00019757,2]
[359640384,1746207044523,-573.45,0.00019757,2]
[359640385,1746207044533,-450.0,0.00019757,2]
[359640386,1746207044542,-450.0,0.00019757,2]
[359640387,1746207044552,-529.68,0.00019757,2]
[359640388,1746207044563,-453.08,0.00019757,2]
[359640389,1746207044572,-567.43,0.00019757,2]
[359640390,1746207044582,-483.37,0.00019757,2]
[359640391,1746207044591,-450.0,0.00019757,2]
[359640392,1746207044600,-450.0,0.00019757,2]
[359640393,1746207044610,-466.54,0.00019757,2]
[359640394,1746207044619,-450.0,0.00019757,2]
[359640395,1746207044629,-450.0,0.00019757,2]
[359640396,1746207044639,-660.43,0.00019757,2]
[359640397,1746207044648,-1178.86,0.00019757,2]
[359640398,1746207044657,-450.0,0.00019757,2]
[359640399,1746207044666,-450.0,0.00019757,2]
[359640400,1746207044676,-450.0,0.00019757,2]
[359640401,1746207044686,-450.0,0.00019757,2]
[359640402,1746207044695,-450.0,0.00019757,2]
[359640403,1746207044706,-450.0,0.00019757,2]
[359640404,1746207044718,-643.25,0.00019757,2]
[359640405,1746207044729,-450.0,0.00019757,2]
[359640406,1746207044740,-450.0,0.00019757,2]
[359640407,1746207044749,-629.36,0.00019757,2]
[359640408,1746207044758,-798.07,0.00019757,2]
[359640409,1746207044768,-450.0,0.00019757,2]
[359640410,1746207044777,-450.0,0.00019757,2]
[359640411,1746207044786,-450.0,0.00019757,2]
[359640412,1746207044796,-564.99,0.00019757,2]
[359640413,1746207044806,-450.0,0.00019757,2]
[359640414,1746207044817,-608.33,0.00019757,2]
[359640415,1746207044826,-450.0,0.00019757,2]
[359640416,1746207044836,-610.67,0.00019757,2]
[359640417,1746207044845,-450.0,0.00019757,2]
[359640418,1746207044855,-450.0,0.00019757,2]
[359640419,1746207044864,-219.28933762,0.00019757,2]
[359640420,1746207044874,-1908.79,0.00019757,2]
[359640421,1746207044884,-450.0,0.00019757,2]
[359640422,1746207044894,-450.0,0.00019757,2]
[359640423,1746207044903,-655.32,0.00019757,2]
[359640424,1746207044912,-781.98,0.00019757,2]
[359640425,1746207044922,-450.0,0.00019757,2]
[359640426,1746207044932,-791.52,0.00019757,2]
[359640427,1746207044941,-845.97,0.00019757,2]
[359640428,1746207044951,-781.37,0.00019757,2]
[359640429,1746207044961,-450.0,0.00019757,2]
[359640430,1746207044970,-698.66,0.00019757,2]
[359640431,1746207044979,-525.24,0.00019757,2]
[359640432,1746207044989,-450.0,0.00019757,2]
[359640433,1746207044998,-1234.52,0.00019757,2]
[359640434,1746207045009,-450.0,0.00019757,2]
[359640435,1746207045018,-1011.96,0.00019757,2]
[359640436,1746207045028,-450.0,0.00019757,2]
[359640437,1746207045038,-450.0,0.00019757,2]
[359640438,1746207045047,-450.0,0.00019757,2]
[359640439,1746207045057,-1274.2,0.00019757,2]
[359640440,1746207045068,-450.0,0.00019757,2]
[359640441,1746207045077,-497.76,0.00019757,2]
[359640442,1746207045086,-1679.64,0.00019757,2]
[359640443,1746207045096,-566.26,0.00019757,2]
[359640444,1746207045105,-692.54,0.00019757,2]
[359640445,1746207045115,-450.0,0.00019757,2]
[359640446,1746207045125,-450.0,0.00019757,2]
[359640447,1746207045134,-450.0,0.00019757,2]
[359640448,1746207045143,-524.4,0.00019757,2]
[359640449,1746207045153,-450.0,0.00019757,2]
[359640450,1746207045163,-640.27,0.00019757,2]
[359640451,1746207045172,-450.0,0.00019757,2]
[359640452,1746207045181,-2514.64,0.00019757,2]
[359640453,1746207045191,-1100.32,0.00019757,2]
[359640454,1746207045201,-450.0,0.00019757,2]
[359640455,1746207045211,-150.0,0.00019758,2]
[359640456,1746207045220,-437.0,0.00019758,2]
[359640457,1746207045229,-154.54925283,0.00019761,2]
[359640458,1746207045239,-500.0,0.00019761,2]
[359640459,1746207045249,-150.0,0.00019761,2]
[359640460,1746207045259,-500.0,0.00019761,2]
[359640461,1746207045268,-500.0,0.00019761,2]
[359640462,1746207045278,-500.0,0.00019761,2]
[359640463,1746207045287,-155.27013893,0.00019761,2]
[359640464,1746207045297,-500.0,0.00019761,2]
[359640465,1746207045307,-151.09399251,0.00019761,2]
[359640466,1746207045317,-150.96083992,0.00019761,2]
[359640467,1746207045332,-150.0,0.00019761,2]
[359640468,1746207045342,-150.79274051,0.00019761,2]
[359640469,1746207045351,-500.0,0.00019761,2]
[359640470,1746207045361,-150.38905316,0.00019761,2]
[359640471,1746207045371,-500.0,0.00019761,2]
[359640472,1746207045380,-441.0,0.00019761,2]
[359640473,1746207045390,-500.0,0.00019761,2]
[359640474,1746207045401,-500.0,0.00019761,2]
[359640475,1746207045411,-500.0,0.00019761,2]
[359640476,1746207045421,-500.0,0.00019761,2]
[359640477,1746207045431,-3463.08707866,0.00019764,2]
[359640478,1746207045441,-162.40954813,0.00019773,2]
[359640479,1746207045450,-165.99958587,0.00019773,2]
[359640480,1746207045460,-505.12152298,0.00019773,2]
[359640481,1746207045470,-500.0,0.00019773,2]
[359640482,1746207045479,-500.0,0.00019773,2]
[359640483,1746207045488,-500.0,0.00019773,2]
[359640484,1746207045498,-500.0,0.00019773,2]
[359640485,1746207045508,-500.0,0.00019773,2]
[359640486,1746207045517,-500.4284128,0.00019773,2]
[359640487,1746207045527,-993.49490625,0.00019782,2]
[359640488,1746207045536,-3463.08707866,0.00019792,2]
[359640489,1746207045545,-880.2620348,0.00019799,2]
[359640490,1746207045555,-993.49490625,0.00019812,2]
[359640491,1746207045565,-3463.08707866,0.00019819,2]
[359640492,1746207045574,-500.0,0.0001984,2]
[359640493,1746207045583,-2000.0,0.0001984,2]
[359640494,1746207045594,-200.0,0.0001984,2]
[359640495,1746207045604,-993.49490625,0.00019841,2]
[359640496,1746207045613,-3463.08707866,0.00019846,2]
[359640497,1746207045622,-12500.0,0.00019847,2]
[359640498,1746207045632,-12500.0,0.00019856,2]
[359640499,1746207045641,-16492.95169529,0.00019862,2]
[359640500,1746207045650,-12500.0,0.00019865,2]
[359640503,1746207045660,-166.818,0.00019867,2]
[359640505,1746207045670,-2751.712,0.00019867,2]
[359640506,1746207045679,-993.49490625,0.00019871,2]
[359640507,1746207045688,-3463.08707866,0.00019873,2]
[359640508,1746207045697,-12500.0,0.00019874,2]
[359640509,1746207045707,-500.0,0.00019882,2]
[359640510,1746207045716,-12500.0,0.00019882,2]
[359640511,1746207045725,-190.15738304,0.0001989,2]
[359640512,1746207045735,-12500.0,0.00019891,2]
[359640513,1746207045744,-288.97902734,0.00019892,2]
[359640514,1746207045753,-12500.0,0.000199,2]
[359640515,1746207045762,-168.4286354,0.000199,2]
[359640516,1746207045772,-2405.8682,0.000199,2]
[359640517,1746207045781,-1407.6815,0.000199,2]
[359640518,1746207045791,-156.69874575,0.000199,2]
[359640519,1746207045800,-165.23990396,0.000199,2]
[359640520,1746207045810,-18376.30093517,0.000199,2]
[359640521,1746207045820,-993.49490625,0.000199,2]
[359640522,1746207045829,-1901.12315016,0.000199,3]
[359640523,1746207045839,-6796.42156826,0.000199,2]
[359640524,1746207045848,-36637.79929455,0.000199,2]
[359640525,1746207045858,-222.83168776,0.000199,2]
[359640526,1746207045867,-4041.2154715,0.000199,2]
[359640527,1746207045876,-3463.08707866,0.000199,2]
[359640528,1746207045885,-761.5792195,0.000199,2]
[359640529,1746207045895,-7267.92508971,0.00019917,2]
[359640530,1746207045905,-151.0,0.00019929,2]
[359640531,1746207045915,-151.0,0.00019933,2]
[359640532,1746207045924,-151.0,0.00019943,2]
[359640533,1746207045934,-151.0,0.00019946,2]
[359640534,1746207045944,-454.99108112,0.00019952,2]
[359640535,1746207045953,-207.4,0.00019953,2]
[359640536,1746207045963,-151.0,0.00019954,2]
[359640537,1746207045973,-151.0,0.00019954,2]
[359640538,1746207045982,-668.65185757,0.00019954,2]
[359640539,1746207045991,-514.0,0.0001997,2]
[359640540,1746207046001,-288.97902734,0.0001997,2]
[359640541,1746207046011,-19543.0,0.00019973,2]
[359640542,1746207046020,-500.0,0.00019973,2]
[359640543,1746207046030,-501.47327578,0.00019973,2]
[359640544,1746207046039,-500.0,0.00019973,2]
[359640545,1746207046049,-368.87036061,0.00019973,2]
[359640546,1746207046059,-501.17158983,0.00019973,2]
[359640547,1746207046068,-309.0,0.00019973,2]
[359640548,1746207046078,-502.19667785,0.00019973,2]
[359640549,1746207046087,-500.0,0.00019973,2]
[359640550,1746207046157,-501.74607688,0.00019973,2]
[359640551,1746207046167,-500.0,0.00019973,2]
[359640552,1746207046177,-500.0,0.00019973,2]
[359640553,1746207046186,-500.0,0.00019973,2]
[359640554,1746207046195,-517.08214642,0.00019973,2]
[359640555,1746207046205,-538.7932649,0.00019973,2]
[359640556,1746207046214,-505.11388319,0.00019973,2]
[359640557,1746207046224,-302.52572163,0.00019973,2]
[359640558,1746207046233,-500.0,0.00019973,2]
[359640559,1746207046242,-243.25265261,0.00019973,2]
[359640560,1746207046252,-500.0,0.00019973,2]
[359640561,1746207046262,-1007.59969745,0.00019976,2]
[359640562,1746207046272,-42053.81685858,0.00019979,2]
[359640563,1746207046281,-375.89281427,0.0001998,2]
[359640564,1746207046291,-500.0,0.00019985,2]
[359640565,1746207046300,-111918.8630562,0.00019986,2]
[359640566,1746207046309,-146492.6408983,0.00019986,2]
[359640567,1746207046320,-5907.7775451,0.00019986,2]
[359640568,1746207046330,-24370.1344281,0.00019986,2]
[359640569,1746207046339,-5030.699828,0.00019986,2]
[359640570,1746207046348,-16262.4057641,0.00019986,2]
[359640571,1746207046359,-1007.59969745,0.0001999,2]
[359640572,1746207046368,-1007.59969745,0.0001999,2]
[359640573,1746207046377,-283.66463137,0.00019999,2]
[359640574,1746207046386,-500.0,0.00019999,2]
[359640575,1746207046397,-675.05638042,0.00019999,2]
[359640576,1746207046408,-500.0,0.00019999,2]
[359640577,1746207046416,-334.77930665,0.00019999,2]
[359640578,1746207046426,-300.0,0.00019999,2]
[359640579,1746207046435,-500.0,0.00019999,2]
[359640580,1746207046444,-500.0,0.00019999,2]
[359640581,1746207046453,-405.21,0.00019999,2]
[359640582,1746207046463,-1403.10502125,0.00019999,2]
[359640583,1746207046472,-1552.0,0.00019999,2]
[359640584,1746207046482,-151.0,0.0002,2]
[359640585,1746207046491,-346.12920957,0.0002,2]
[359640586,1746207046501,-395966.74056122,0.0002,2]
[359640587,1746207046511,-3707066.36063543,0.0002,2]
[359640604,1746207047098,23900.0,0.00018824,2]
[359640626,1746207047352,-624.83,0.00019756,2]
[359640628,1746207047362,-1041.9586156,0.000199,2]
[359640630,1746207047371,-19220.53369269,0.0002,2]
[359640632,1746207047382,-335.6599995,0.0002,2]
[359640634,1746207047404,-3428.22250696,0.0002,2]
[359640637,1746207047425,-305.54965932,0.00019755,2]
[359640640,1746207047436,-144.45034068,0.00019755,2]
[359640641,1746207047446,-243.43865928,0.0002,2]
[359640644,1746207047457,-252.3807417,0.0002,2]
[359640647,1746207047483,-619.80675501,0.0002,2]
[359640691,1746207047951,-202.7444423,0.00019758,2]
[359640693,1746207047961,-63.0035401,0.0002,2]
[359641144,1746207077529,295.0,0.00032877,60]
[359641145,1746207092044,150.0,0.00019,2]
[359641146,1746207100178,150.0,0.00019,2]
[359641147,1746207132006,168.48532,0.0002,23]
[359641148,1746207273958,250.0,0.00019006,2]
[359641149,1746207334597,250.0,0.00018992,7]
[359641150,1746207536396,158.32,0.00016712,2]
[359641151,1746207569620,169.0,0.00018887,2]
[359641152,1746207605646,1952.14,0.00019,2]
[359641153,1746207698014,925.25,0.00016989,2]
[359641154,1746207698139,925.25,0.00019253,2]
[359641155,1746207745733,-200.0,0.00019653,2]
[359641156,1746207749085,-63.89318283,0.00019653,2]
[359641157,1746207749108,-275.59126598,0.00019653,2]
[359641158,1746207752774,-247.62707732,0.00019653,2]
[359641159,1746207755326,-152.0,0.00019653,2]
[359641160,1746207759742,-267.28634013,0.00019653,2]
[359641161,1746207777333,-163.0922284,0.00019653,2]
[359641162,1746207780787,-94.40308817,0.00019653,2]
[359641163,1746207780810,-104.76180389,0.00019653,2]
[359641164,1746207785937,-163.022522,0.00019653,2]
[359641165,1746207791266,-32.21567411,0.00019653,2]
[359641166,1746207791290,-429.34987437,0.00019654,2]
[359641167,1746207794975,-187.43587134,0.00019654,2]
[359641168,1746207798350,-188.66894,0.00019654,2]
[359641169,1746207802881,-161.33106,0.00019654,2]
[359641170,1746207807262,-166.61742077,0.00019654,2]
[359641171,1746207811896,-200.0,0.00019654,2]
[359641172,1746207815136,-376.84894,0.00019654,2]
[359641173,1746207819350,-290.60471069,0.00019654,2]
[359641174,1746207919816,178.19816507,0.00018,2]
[359641175,1746208036094,165.29,0.00019478,2]
[359641176,1746208194682,1000.0,0.00018875,2]
[359641177,1746208206245,2523.48,0.00019,2]
[359641178,1746208214420,249.51035141,0.00032876,60]
[359641182,1746208232002,-1200.0,0.00019653,2]
[359641183,1746208232012,-300.0,0.00019653,2]
[359641184,1746208232022,-250.0,0.00019653,2]
[359641185,1746208232031,-1767.8102665,0.00019654,2]
[359641186,1746208232043,-496.41083977,0.00019654,2]
[359641187,1746208232065,-664.70946843,0.00019654,2]
[359641188,1746208232076,-2497.46872877,0.00019654,2]
[359641189,1746208232160,-4668.46184484,0.00019654,2]
[359641269,1746208238039,-24622.39171205,0.00019654,2]
[359641270,1746208238049,-26788.76805,0.00019654,2]
[359641271,1746208238059,-7306.7645941,0.00019654,2]
[359641272,1746208238067,-187.77246852,0.00019654,2]
[359641273,1746208238076,-216.73427057,0.00019655,2]
[359641274,1746208238084,-20117.51585716,0.00019655,2]
[359641275,1746208238095,-8479.99999,0.00019655,2]
[359641276,1746208238106,-5205.046792,0.00019655,2]
[359641277,1746208238117,-2430.91906084,0.00019655,2]
[359641278,1746208238126,-216.7342705,0.0001969,2]
[359641279,1746208238136,-1000.0,0.000197,2]
[359641280,1746208238145,-216.7342705,0.00019725,2]
[359641281,1746208238154,-442.47740296,0.00019725,2]
[359641282,1746208238163,-500.0,0.00019754,2]
[359641283,1746208238172,-287.44270961,0.00019754,2]
[359641284,1746208238182,-500.0,0.00019754,2]
[359641285,1746208238191,-450.0,0.00019754,2]
[359641286,1746208238203,-450.0,0.00019754,2]
[359641287,1746208238212,-450.0,0.00019754,2]
[359641288,1746208238222,-450.0,0.00019754,2]
[359641289,1746208238231,-450.0,0.00019754,2]
[359641290,1746208238240,-450.0,0.00019754,2]
[359641291,1746208238250,-791.37,0.00019754,2]
[359641292,1746208238259,-450.0,0.00019754,2]
[359641293,1746208238269,-450.0,0.00019754,2]
[359641294,1746208238278,-450.0,0.00019754,2]
[359641295,1746208238287,-12.46523359,0.00019754,2]
[359641296,1746208238301,-437.53476641,0.00019754,2]
[359641297,1746208238310,-450.0,0.00019754,2]
[359641298,1746208238320,-450.0,0.00019754,2]
[359641299,1746208238329,-450.0,0.00019754,2]
[359641300,1746208238338,-450.0,0.00019754,2]
[359641301,1746208238347,-795.803446,0.00019754,2]
[359641302,1746208238357,-450.0,0.00019754,2]
[359641303,1746208238366,-277.50178759,0.00019754,2]
[359641305,1746208238474,-172.49821241,0.00019754,2]
[359641306,1746208238483,-450.0,0.00019754,2]
[359641307,1746208238492,-450.0,0.00019754,2]
[359641308,1746208238502,-450.0,0.00019754,2]
[359641309,1746208238511,-450.0,0.00019754,2]
[359641310,1746208238520,-371.79185091,0.00019754,2]
[359641320,1746208240281,-198.91123941,0.00019754,2]
[359641321,1746208240290,-609.176484,0.00019754,2]
[359641322,1746208240300,-450.0,0.00019754,2]
[359641323,1746208240310,-450.0,0.00019754,2]
[359641324,1746208240319,-450.0,0.00019754,2]
[359641325,1746208240328,-1118.35,0.00019754,2]
[359641326,1746208240339,-450.0,0.00019754,2]
[359641327,1746208240349,-450.0,0.00019754,2]
[359641328,1746208240358,-450.0,0.00019754,2]
[359641329,1746208240368,-450.0,0.00019754,2]
[359641330,1746208240378,-450.0,0.00019754,2]
[359641331,1746208240387,-450.0,0.00019754,2]
[359641332,1746208240397,-450.0,0.00019754,2]
[359641333,1746208240406,-575.46,0.00019754,2]
[359641334,1746208240417,-450.0,0.00019754,2]
[359641335,1746208240426,-461.11,0.00019754,2]
[359641336,1746208240436,-495.8,0.00019754,2]
[359641337,1746208240445,-450.0,0.00019754,2]
[359641338,1746208240454,-450.0,0.00019754,2]
[359641339,1746208240464,-526.95,0.00019754,2]
[359641340,1746208240473,-450.0,0.00019754,2]
[359641341,1746208240487,-450.0,0.00019754,2]
[359641342,1746208240497,-537.83,0.00019754,2]
[359641343,1746208240507,-485.61,0.00019754,2]
[359641344,1746208240516,-450.0,0.00019754,2]
[359641345,1746208240526,-450.0,0.00019754,2]
[359641346,1746208240535,-450.0,0.00019754,2]